[Event "SixDays Budapest GM-B January 2024"]
[Site "Budapest"]
[Date "2024.01.27"]
[Round "1.1"]
[White "Varga, Zoltan"]
[Black "Grover, Sahaj"]
[Result "0-1"]
[ECO "A30"]
[WhiteElo "2366"]
[BlackElo "2503"]
[Annotator "RC"]
[PlyCount "52"]
[EventDate "2024.01.26"]
[EventType "tourn"]
[EventCountry "HUN"]
[SourceTitle "playchess.com"]
[Source "ChessBase"]
[SourceQuality "1"]
[TimeControl "5400+30"]

1. c4 {[%emt 0:03:43]} c5 {[%emt 0:13:04]} 2. Nf3 {[%emt 0:01:41]} Nc6 {[%emt 0:03:05]} 3. d4 {[%emt 0:00:20]} cxd4 {[%emt 0:00:10]} 4. Nxd4 {[%emt 0:00:04]} Nf6 {[%emt 0:01:30]} 5. g3 {[%emt 0:01:00]} Qb6 {[%emt 0:00:26]} 6. Nb3 {[%emt 0:02:51]} Ne5 {[%emt 0:04:39]} 7. c5 {[%emt 0:04:42]} Qc6 {[%emt 0:05:01]} 8. Rg1 {[%emt 0:01:13]} d5 {[%emt 0:01:30]} 9. cxd6 {[%emt 0:00:37]} exd6 {[%emt 0:10:16]} 10. Nc3 {[%emt 0:02:09]} d5 {[%emt 0:01:20]} 11. Bg2 {[%emt 0:05:09]} Bb4 {[%emt 0:03:06]} 12. Qd4 {[%emt 0:01:16]} Qe6 {[%emt 0:00:43]} 13. a3 {[%emt 0:06:57]} Nc6 {[%emt 0:12:12]} 14. Qe3 {[%emt 0:00:13]} Be7 {[%emt 0:06:05]} 15. Nd4 {[%emt 0:03:03]} Qd7 {[%emt 0:00:54]} 16. Qd3 {[%emt 0:04:42]} O-O {[%emt 0:00:24]} 17. Bf4 {[%emt 0:00:29]} Bc5 {[%emt 0:01:57]} 18. Nb3 {[%emt 0:00:46]} Bb6 {[%emt 0:00:06]} 19. Nxd5 {[%emt 0:03:28]} Nxd5 {[%emt 0:00:50]} 20. Bxd5 {[%emt 0:05:44]} Rd8 {[%emt 0:11:14]} 21. O-O-O {[%emt 0:01:14]} Qe8 {[%emt 0:00:45]} 22. Qf3 {[%emt 0:06:25]} Bf5 {[%emt 0:04:48]} 23. e4 {[%emt 0:00:03]} Bg6 {[%emt 0:02:07]} 24. Rge1 {[%emt 0:03:42]} a5 {[%emt 0:04:04]} 25. h4 {[%emt 0:14:03]} h5 {[%emt 0:00:33]} 26. Be3 {[%emt 0:02:06]} Rac8 {[%emt 0:00:53]} 0-1

[Event "SixDays Budapest GM-B January 2024"]
[Site "Budapest"]
[Date "2024.01.27"]
[Round "1.2"]
[White "Celik, Hasan Huseyin"]
[Black "Lee, Alice"]
[Result "0-1"]
[ECO "C42"]
[WhiteElo "2436"]
[BlackElo "2379"]
[Annotator "RC"]
[PlyCount "118"]
[EventDate "2024.01.26"]
[EventType "tourn"]
[EventCountry "HUN"]
[SourceTitle "playchess.com"]
[Source "ChessBase"]
[SourceQuality "1"]
[TimeControl "5400+30"]

1. e4 {[%emt 0:08:12]} e5 {[%emt 0:00:11]} 2. Nf3 {[%emt 0:00:08]} Nf6 {[%emt 0:00:09]} 3. Nxe5 {[%emt 0:00:07]} d6 {[%emt 0:00:05]} 4. Nf3 {[%emt 0:00:10]} Nxe4 {[%emt 0:00:07]} 5. d4 {[%emt 0:00:11]} d5 {[%emt 0:00:10]} 6. Bd3 {[%emt 0:00:06]} Bf5 {[%emt 0:01:38]} 7. O-O {[%emt 0:02:34]} Be7 {[%emt 0:00:17]} 8. Re1 {[%emt 0:02:09]} O-O {[%emt 0:01:14]} 9. Nbd2 {[%emt 0:00:17]} Nd6 {[%emt 0:01:13]} 10. Nf1 {[%emt 0:00:16]} Nd7 {[%emt 0:11:30]} 11. Bf4 {[%emt 0:03:41]} Bxd3 {[%emt 0:04:05]} 12. Qxd3 {[%emt 0:00:02]} Nf6 {[%emt 0:04:48]} 13. Ng3 {[%emt 0:06:46]} Re8 {[%emt 0:09:37]} 14. Re2 {[%emt 0:14:45]} Bf8 {[%emt 0:18:25]} 15. Ne5 {[%emt 0:10:18]} c6 {[%emt 0:02:46]} 16. Rae1 {[%emt 0:02:27]} Nfe4 {[%emt 0:06:18]} 17. Qb3 {[%emt 0:07:31]} Qf6 {[%emt 0:03:58]} 18. Nxe4 {[%emt 0:03:26]} dxe4 {[%emt 0:01:43]} 19. Bg3 {[%emt 0:02:44]} Qe6 {[%emt 0:07:49]} 20. Qxe6 {[%emt 0:04:58]} Rxe6 {[%emt 0:00:02]} 21. Nd7 {[%emt 0:01:20]} Nf5 {[%emt 0:00:17]} 22. c3 {[%emt 0:09:12]} Rae8 {[%emt 0:06:19]} 23. Nxf8 {[%emt 0:00:49]} Kxf8 {[%emt 0:02:25]} 24. Bf4 {[%emt 0:00:21]} h6 {[%emt 0:00:51]} 25. Rd1 {[%emt 0:01:36]} g5 {[%emt 0:05:41]} 26. Bc1 {[%emt 0:00:42]} Rd8 {[%emt 0:03:35]} 27. Red2 {[%emt 0:01:54]} Ne7 {[%emt 0:02:41]} 28. c4 {[%emt 0:02:36]} f5 {[%emt 0:00:51]} 29. b3 {[%emt 0:01:22]} Ke8 {[%emt 0:00:41]} 30. Ba3 {[%emt 0:01:16]} f4 {[%emt 0:00:23]} 31. Bb2 {[%emt 0:05:28]} Kf7 {[%emt 0:03:04]} 32. Kf1 {[%emt 0:03:46]} e3 {[%emt 0:01:21]} 33. fxe3 {[%emt 0:02:30]} Nf5 {[%emt 0:00:02]} 34. Rc1 {[%emt 0:01:30]} Nxe3+ {[%emt 0:02:21]} 35. Kg1 {[%emt 0:00:10]} Kg6 {[%emt 0:00:26]} 36. h3 {[%emt 0:00:58]} Nf5 {[%emt 0:00:26]} 37. Rcd1 {[%emt 0:01:27]} Re4 {[%emt 0:00:45]} 38. d5 {[%emt 0:00:25]} Ng3 {[%emt 0:00:34]} 39. Bd4 {[%emt 0:00:33]} cxd5 {[%emt 0:00:17]} 40. Bf2 {[%emt 0:00:23]} d4 {[%emt 0:00:36]} 41. Bxg3 {[%emt 0:00:31]} fxg3 {[%emt 0:00:01]} 42. Rd3 {[%emt 0:00:05]} Re2 {[%emt 0:00:41]} 43. a4 {[%emt 0:00:25]} Kf5 {[%emt 0:00:38]} 44. Rxg3 {[%emt 0:00:12]} Ke4 {[%emt 0:00:29]} 45. Kf1 {[%emt 0:01:08]} Re3 {[%emt 0:00:18]} 46. Rg4+ {[%emt 0:00:12]} Ke5 {[%emt 0:00:01]} 47. h4 {[%emt 0:00:13]} Rf8+ {[%emt 0:00:44]} 48. Kg1 {[%emt 0:00:04]} Rf4 {[%emt 0:00:03]} 49. Rxf4 {[%emt 0:00:09]} gxf4 {[%emt 0:00:01]} 50. b4 {[%emt 0:00:12]} d3 {[%emt 0:00:16]} 51. c5 {[%emt 0:00:16]} Kd4 {[%emt 0:00:03]} 52. Kf2 {[%emt 0:00:03]} Kc3 {[%emt 0:01:18]} 53. b5 {[%emt 0:00:25]} Kc2 {[%emt 0:00:16]} 54. Ra1 {[%emt 0:00:04]} d2 {[%emt 0:00:15]} 55. Ra2+ {[%emt 0:00:20]} Kc3 {[%emt 0:00:18]} 56. Ra1 {[%emt 0:00:08]} Kb2 {[%emt 0:00:08]} 57. Rh1 {[%emt 0:00:06]} Kc2 {[%emt 0:00:11]} 58. g4 {[%emt 0:00:15]} d1=Q {[%emt 0:00:22]} 59. Rxd1 {[%emt 0:00:02]} Kxd1 {[%emt 0:00:07]} 0-1

[Event "SixDays Budapest GM-B January 2024"]
[Site "Budapest"]
[Date "2024.01.27"]
[Round "1.3"]
[White "Pang, Tao"]
[Black "Coenen, Michael"]
[Result "1-0"]
[ECO "D53"]
[WhiteElo "2430"]
[BlackElo "2330"]
[Annotator "RC"]
[PlyCount "143"]
[EventDate "2024.01.26"]
[EventType "tourn"]
[EventCountry "HUN"]
[SourceTitle "playchess.com"]
[Source "ChessBase"]
[SourceQuality "1"]
[TimeControl "5400+30"]

1. c4 {[%emt 0:00:03]} e6 {[%emt 0:00:04]} 2. Nc3 {[%emt 0:00:20]} d5 {[%emt 0:00:04]} 3. d4 {[%emt 0:00:07]} Nf6 {[%emt 0:00:05]} 4. Bg5 {[%emt 0:01:50]} Be7 {[%emt 0:00:24]} 5. Nf3 {[%emt 0:00:36]} h6 {[%emt 0:01:02]} 6. Bxf6 {[%emt 0:01:50]} Bxf6 {[%emt 0:00:07]} 7. e3 {[%emt 0:00:09]} O-O {[%emt 0:00:41]} 8. Rc1 {[%emt 0:00:40]} dxc4 {[%emt 0:03:53]} 9. Bxc4 {[%emt 0:02:09]} c5 {[%emt 0:00:12]} 10. dxc5 {[%emt 0:08:51]} Qa5 {[%emt 0:05:13]} 11. O-O {[%emt 0:00:45]} Rd8 {[%emt 0:02:24]} 12. Qe2 {[%emt 0:14:27]} Qxc5 {[%emt 0:04:24]} 13. Ne4 {[%emt 0:00:08]} Qe7 {[%emt 0:00:38]} 14. Nxf6+ {[%emt 0:00:21]} Qxf6 {[%emt 0:00:08]} 15. e4 {[%emt 0:00:18]} Bd7 {[%emt 0:08:57]} 16. e5 {[%emt 0:02:37]} Qe7 {[%emt 0:14:03]} 17. Rfd1 {[%emt 0:02:04]} Bc6 {[%emt 0:03:18]} 18. Rxd8+ {[%emt 0:05:38]} Qxd8 {[%emt 0:00:03]} 19. Rd1 {[%emt 0:00:09]} Qe7 {[%emt 0:07:45]} 20. Nd4 {[%emt 0:01:24]} a6 {[%emt 0:02:42]} 21. f4 {[%emt 0:04:05]} Be8 {[%emt 0:06:23]} 22. f5 {[%emt 0:05:52]} exf5 {[%emt 0:05:06]} 23. e6 {[%emt 0:04:52]} Nc6 {[%emt 0:04:31]} 24. Nxc6 {[%emt 0:14:47]} Bxc6 {[%emt 0:00:38]} 25. exf7+ {[%emt 0:00:06]} Kf8 {[%emt 0:00:04]} 26. Qd3 {[%emt 0:04:12]} Be4 {[%emt 0:06:14]} 27. Qd4 {[%emt 0:05:13]} Rc8 {[%emt 0:00:00]} 28. h3 {[%emt 0:01:00]} Bc2 {[%emt 0:06:06]} 29. Rf1 {[%emt 0:02:21]} Rd8 {[%emt 0:01:19]} 30. Qf2 {[%emt 0:01:48]} Be4 {[%emt 0:01:05]} 31. Bb3 {[%emt 0:00:19]} Qb4 {[%emt 0:03:00]} 32. Rc1 {[%emt 0:00:27]} Bc6 {[%emt 0:04:51]} 33. Qxf5 {[%emt 0:04:12]} Qd4+ {[%emt 0:00:02]} 34. Kh2 {[%emt 0:02:59]} Qd6+ {[%emt 0:00:07]} 35. Kg1 {[%emt 0:00:09]} Qd4+ {[%emt 0:00:01]} 36. Qf2 {[%emt 0:00:20]} Qxf2+ {[%emt 0:00:05]} 37. Kxf2 {[%emt 0:00:01]} Rd2+ {[%emt 0:00:09]} 38. Ke3 {[%emt 0:03:35]} Rxg2 {[%emt 0:01:32]} 39. Rd1 {[%emt 0:00:08]} Rg3+ {[%emt 0:00:49]} 40. Kf4 {[%emt 0:00:59]} Rf3+ {[%emt 0:00:29]} 41. Kg4 {[%emt 0:00:54]} Rf6 {[%emt 0:04:01]} 42. Rd8+ {[%emt 0:00:22]} Ke7 {[%emt 0:00:01]} 43. Rg8 {[%emt 0:00:28]} g5 {[%emt 0:00:45]} 44. Rh8 {[%emt 0:02:28]} Bf3+ {[%emt 0:00:03]} 45. Kg3 {[%emt 0:00:03]} Bc6 {[%emt 0:00:06]} 46. h4 {[%emt 0:01:37]} Rf3+ {[%emt 0:03:49]} 47. Kg4 {[%emt 0:00:00]} Rf4+ {[%emt 0:00:16]} 48. Kh5 {[%emt 0:00:25]} gxh4 {[%emt 0:00:23]} 49. Kxh6 {[%emt 0:01:22]} Bd7 {[%emt 0:03:18]} 50. Kg5 {[%emt 0:01:16]} Rg4+ {[%emt 0:00:03]} 51. Kh5 {[%emt 0:00:05]} Rf4 {[%emt 0:00:03]} 52. Rh7 {[%emt 0:00:38]} Bf5 {[%emt 0:02:12]} 53. f8=Q+ {[%emt 0:01:08]} Kxf8 {[%emt 0:00:01]} 54. Rf7+ {[%emt 0:00:06]} Ke8 {[%emt 0:00:03]} 55. Kg5 {[%emt 0:00:01]} h3 {[%emt 0:01:06]} 56. Kxf4 {[%emt 0:05:01]} h2 {[%emt 0:00:02]} 57. Bd5 {[%emt 0:00:04]} Be6 {[%emt 0:00:12]} 58. Rh7 {[%emt 0:00:05]} Bxd5 {[%emt 0:00:05]} 59. Rxh2 {[%emt 0:00:02]} Bxa2 {[%emt 0:00:08]} 60. Rd2 {[%emt 0:00:27]} Ke7 {[%emt 0:00:32]} 61. Ke5 {[%emt 0:00:02]} Bb1 {[%emt 0:02:08]} 62. Rd6 {[%emt 0:00:40]} Be4 {[%emt 0:00:20]} 63. Rh6 {[%emt 0:00:03]} Bd3 {[%emt 0:03:08]} 64. Rb6 {[%emt 0:00:19]} Be2 {[%emt 0:00:15]} 65. Rxb7+ {[%emt 0:00:05]} Kd8 {[%emt 0:00:01]} 66. Kd6 {[%emt 0:00:08]} Kc8 {[%emt 0:00:07]} 67. Re7 {[%emt 0:00:04]} Bf1 {[%emt 0:01:35]} 68. Kc6 {[%emt 0:00:06]} Bb5+ {[%emt 0:00:31]} 69. Kb6 {[%emt 0:00:02]} Kb8 {[%emt 0:00:09]} 70. Rg7 {[%emt 0:00:10]} Kc8 {[%emt 0:00:39]} 71. Rg8+ {[%emt 0:00:04]} Kd7 {[%emt 0:00:05]} 72. Ra8 {[%emt 0:00:02]} 1-0

[Event "SixDays Budapest GM-B January 2024"]
[Site "Budapest"]
[Date "2024.01.27"]
[Round "1.4"]
[White "Dau Khuong Duy"]
[Black "Gombocz, Ferenc Jr."]
[Result "1/2-1/2"]
[ECO "C72"]
[WhiteElo "2309"]
[BlackElo "2366"]
[Annotator "RC"]
[PlyCount "49"]
[EventDate "2024.01.26"]
[EventType "tourn"]
[EventCountry "HUN"]
[SourceTitle "playchess.com"]
[Source "ChessBase"]
[SourceQuality "1"]
[TimeControl "5400+30"]

1. e4 {[%emt 0:00:32]} e5 {[%emt 0:00:07]} 2. Nf3 {[%emt 0:00:08]} Nc6 {[%emt 0:00:13]} 3. Bb5 {[%emt 0:00:23]} a6 {[%emt 0:00:12]} 4. Ba4 {[%emt 0:00:21]} d6 {[%emt 0:00:11]} 5. O-O {[%emt 0:01:07]} Bd7 {[%emt 0:00:41]} 6. d4 {[%emt 0:00:57]} b5 {[%emt 0:11:47]} 7. Bb3 {[%emt 0:00:27]} Nxd4 {[%emt 0:01:18]} 8. Nxd4 {[%emt 0:00:12]} exd4 {[%emt 0:00:04]} 9. c3 {[%emt 0:00:06]} d3 {[%emt 0:11:58]} 10. Qxd3 {[%emt 0:05:21]} Be6 {[%emt 0:03:23]} 11. Bxe6 {[%emt 0:04:21]} fxe6 {[%emt 0:00:04]} 12. a4 {[%emt 0:00:09]} c6 {[%emt 0:01:07]} 13. Nd2 {[%emt 0:07:50]} Nf6 {[%emt 0:04:27]} 14. axb5 {[%emt 0:10:08]} axb5 {[%emt 0:00:30]} 15. Rxa8 {[%emt 0:00:27]} Qxa8 {[%emt 0:00:08]} 16. e5 {[%emt 0:00:54]} dxe5 {[%emt 0:02:42]} 17. Qh3 {[%emt 0:03:25]} Qc8 {[%emt 0:03:15]} 18. Nf3 {[%emt 0:01:40]} Bd6 {[%emt 0:01:16]} 19. Rd1 {[%emt 0:01:44]} Bb8 {[%emt 0:02:50]} 20. Ng5 {[%emt 0:04:24]} O-O {[%emt 0:03:15]} 21. Qxe6+ {[%emt 0:02:12]} Qxe6 {[%emt 0:00:06]} 22. Nxe6 {[%emt 0:00:05]} Rc8 {[%emt 0:04:43]} 23. Rd8+ {[%emt 0:14:11]} Rxd8 {[%emt 0:00:07]} 24. Nxd8 {[%emt 0:00:06]} c5 {[%emt 0:00:27]} 25. Be3 {[%emt 0:02:30]} 1/2-1/2

[Event "SixDays Budapest GM-B January 2024"]
[Site "Budapest"]
[Date "2024.01.27"]
[Round "1.5"]
[White "Pap, Misa"]
[Black "Kaczur, Florian"]
[Result "1/2-1/2"]
[ECO "B15"]
[WhiteElo "2422"]
[BlackElo "2506"]
[Annotator "RC"]
[PlyCount "21"]
[EventDate "2024.01.26"]
[EventType "tourn"]
[EventCountry "HUN"]
[SourceTitle "playchess.com"]
[Source "ChessBase"]
[SourceQuality "1"]
[TimeControl "5400+30"]

1. e4 {[%emt 0:01:56]} c6 {[%emt 0:00:46]} 2. d4 {[%emt 0:00:50]} d5 {[%emt 0:00:06]} 3. Nd2 {[%emt 0:00:05]} dxe4 {[%emt 0:00:27]} 4. Nxe4 {[%emt 0:00:06]} Nf6 {[%emt 0:01:00]} 5. Nxf6+ {[%emt 0:00:23]} exf6 {[%emt 0:00:33]} 6. c3 {[%emt 0:00:11]} Bd6 {[%emt 0:00:23]} 7. Bd3 {[%emt 0:00:07]} O-O {[%emt 0:00:31]} 8. Qc2 {[%emt 0:00:10]} Re8+ {[%emt 0:00:05]} 9. Ne2 {[%emt 0:00:06]} h6 {[%emt 0:01:30]} 10. O-O {[%emt 0:00:26]} Nd7 {[%emt 0:01:27]} 11. Bf4 {[%emt 0:10:13]} 1/2-1/2

[Event "SixDays Budapest GM-B January 2024"]
[Site "Budapest"]
[Date "2024.01.28"]
[Round "2.1"]
[White "Grover, Sahaj"]
[Black "Kaczur, Florian"]
[Result "0-1"]
[ECO "C77"]
[WhiteElo "2503"]
[BlackElo "2506"]
[Annotator "RC"]
[PlyCount "116"]
[EventDate "2024.01.26"]
[EventType "tourn"]
[EventCountry "HUN"]
[SourceTitle "playchess.com"]
[Source "ChessBase"]
[SourceQuality "1"]
[TimeControl "5400+30"]

1. e4 {[%emt 0:18:34]} e5 {[%emt 0:00:43]} 2. Nf3 {[%emt 0:00:06]} Nc6 {[%emt 0:00:05]} 3. Bb5 {[%emt 0:00:06]} a6 {[%emt 0:00:34]} 4. Ba4 {[%emt 0:00:04]} Nf6 {[%emt 0:00:20]} 5. d3 {[%emt 0:00:26]} d6 {[%emt 0:00:20]} 6. c3 {[%emt 0:00:04]} g6 {[%emt 0:02:13]} 7. O-O {[%emt 0:00:09]} Bg7 {[%emt 0:00:03]} 8. Re1 {[%emt 0:01:58]} O-O {[%emt 0:00:08]} 9. Nbd2 {[%emt 0:00:22]} b5 {[%emt 0:07:53]} 10. Bc2 {[%emt 0:00:08]} Bb7 {[%emt 0:00:21]} 11. a4 {[%emt 0:01:46]} Nb8 {[%emt 0:04:29]} 12. b4 {[%emt 0:04:37]} Nbd7 {[%emt 0:00:22]} 13. Nb3 {[%emt 0:01:39]} c6 {[%emt 0:04:04]} 14. d4 {[%emt 0:09:44]} Qc7 {[%emt 0:07:59]} 15. dxe5 {[%emt 0:02:18]} dxe5 {[%emt 0:01:14]} 16. Be3 {[%emt 0:00:06]} Ng4 {[%emt 0:07:36]} 17. Bc5 {[%emt 0:01:38]} Nxc5 {[%emt 0:09:20]} 18. Nxc5 {[%emt 0:02:44]} Nf6 {[%emt 0:04:46]} 19. Bb3 {[%emt 0:07:06]} Rad8 {[%emt 0:04:46]} 20. Qc1 {[%emt 0:07:13]} Bc8 {[%emt 0:08:52]} 21. axb5 {[%emt 0:03:55]} axb5 {[%emt 0:00:06]} 22. Qe3 {[%emt 0:01:35]} Nd7 {[%emt 0:04:28]} 23. h3 {[%emt 0:11:36]} Bf6 {[%emt 0:03:16]} 24. Red1 {[%emt 0:04:27]} Nb6 {[%emt 0:10:58]} 25. Ng5 {[%emt 0:04:16]} Qe7 {[%emt 0:05:36]} 26. h4 {[%emt 0:06:25]} Nc4 {[%emt 0:01:31]} 27. Bxc4 {[%emt 0:03:05]} bxc4 {[%emt 0:00:20]} 28. Rxd8 {[%emt 0:00:25]} Rxd8 {[%emt 0:00:13]} 29. g3 {[%emt 0:00:04]} Bg4 {[%emt 0:03:54]} 30. Kg2 {[%emt 0:01:47]} h6 {[%emt 0:01:19]} 31. Nf3 {[%emt 0:00:10]} Kh7 {[%emt 0:02:53]} 32. Qe2 {[%emt 0:01:17]} Kg7 {[%emt 0:00:43]} 33. Qxc4 {[%emt 0:00:26]} Bxf3+ {[%emt 0:01:56]} 34. Kxf3 {[%emt 0:00:07]} Bxh4 {[%emt 0:00:44]} 35. gxh4 {[%emt 0:01:34]} Qxh4 {[%emt 0:00:05]} 36. Nd3 {[%emt 0:00:52]} Rd6 {[%emt 0:00:25]} 37. Rg1 {[%emt 0:01:29]} Qh2 {[%emt 0:00:36]} 38. Rg3 {[%emt 0:01:46]} h5 {[%emt 0:00:36]} 39. Ke2 {[%emt 0:00:06]} Rf6 {[%emt 0:00:48]} 40. Qc5 {[%emt 0:01:13]} h4 {[%emt 0:00:20]} 41. Rf3 {[%emt 0:00:16]} Rxf3 {[%emt 0:01:40]} 42. Kxf3 {[%emt 0:00:05]} Qh1+ {[%emt 0:00:15]} 43. Ke3 {[%emt 0:02:02]} h3 {[%emt 0:00:06]} 44. Qxe5+ {[%emt 0:00:04]} Kf8 {[%emt 0:01:54]} 45. Qh8+ {[%emt 0:01:17]} Ke7 {[%emt 0:00:01]} 46. Qe5+ {[%emt 0:00:01]} Kf8 {[%emt 0:00:06]} 47. Qh8+ {[%emt 0:02:11]} Ke7 {[%emt 0:00:01]} 48. e5 {[%emt 0:00:37]} h2 {[%emt 0:00:19]} 49. Qf6+ {[%emt 0:00:22]} Ke8 {[%emt 0:00:04]} 50. e6 {[%emt 0:00:22]} fxe6 {[%emt 0:00:14]} 51. Ne5 {[%emt 0:00:45]} Qe1+ {[%emt 0:00:20]} 52. Kd4 {[%emt 0:00:08]} Qd1+ {[%emt 0:00:22]} 53. Ke3 {[%emt 0:00:53]} h1=Q {[%emt 0:01:05]} 54. Qxe6+ {[%emt 0:00:03]} Kd8 {[%emt 0:00:06]} 55. Qf6+ {[%emt 0:00:25]} Kc8 {[%emt 0:00:16]} 56. Qe6+ {[%emt 0:00:31]} Kb7 {[%emt 0:00:22]} 57. Qf7+ {[%emt 0:00:50]} Kb6 {[%emt 0:01:46]} 58. Nc4+ {[%emt 0:00:42]} Kb5 {[%emt 0:01:23]} 0-1

[Event "SixDays Budapest GM-B January 2024"]
[Site "Budapest"]
[Date "2024.01.28"]
[Round "2.2"]
[White "Gombocz, Ferenc Jr."]
[Black "Pap, Misa"]
[Result "1-0"]
[ECO "A47"]
[WhiteElo "2366"]
[BlackElo "2422"]
[Annotator "TA"]
[PlyCount "105"]
[EventDate "2024.01.26"]
[EventType "tourn"]
[EventCountry "HUN"]
[SourceTitle "playchess.com"]
[Source "ChessBase"]
[SourceQuality "1"]
[TimeControl "5400+30"]

{[%evp 9,105,-1,0,0,0,10,15,18,5,-20,-25,-12,4,-47,-45,-50,-9,-66,9,0,11,-5,0,0,0,0,0,0,467,470,431,287,277,293,522,531,516,508,510,506,710,718,705,705,710,749,1438,1459,1448,1420,1385,1440,1228,760,760,704,768,741,795,799,901,894,898,857,913,906,907,886,960,922,989,981,972,949,2004,1881,2852,2661,4802,1546,4827,4827,29977,29979,29978,29980,29993,29993,29993,29992,29992,29993,29993,29994,29994,29995,29997,29998]} 1. d4 {[%emt 0:00:04]} Nf6 {[%emt 0:08:23]} 2. Nf3 {[%emt 0:00:08]} b6 {[%emt 0:00:48]} 3. Bf4 {[%emt 0:01:45]} Bb7 {[%emt 0:00:10]} 4. e3 {[%emt 0:02:22]} Nh5 {[%emt 0:00:45]} 5. Bg5 {[%emt 0:00:36]} h6 {[%emt 0:00:09]} 6. Bh4 {[%emt 0:00:08]} g5 {[%emt 0:00:39]} 7. Nfd2 {[%emt 0:01:26]} Nf4 {[%emt 0:00:15]} 8. exf4 {[%emt 0:00:15] The position is equal.} gxh4 {[%emt 0:00:05]} 9. Qh5 {[%emt 0:09:25]} e6 {[%emt 0:14:39]} 10. Nf3 {[%emt 0:09:52]} c5 {[%emt 0:18:04]} 11. Nc3 {[%emt 0:09:47]} (11. Nbd2 $11) 11... cxd4 $15 {[%emt 0:04:51]} 12. Nxd4 {[%emt 0:09:07]} Nc6 {[%emt 0:12:23] Against Qe5} 13. Nf3 {[%emt 0:04:58]} (13. Nxc6 $11 Bxc6 14. Bb5) 13... Bg7 {[%emt 0:07:43]} (13... Bb4 $1 $15 14. Qxh4 Ne7) 14. Nb5 $11 {[%emt 0:16:40]} d5 {[%emt 0:12:22]} 15. Ne5 $132 {[%emt 0:00:45][%csl Ge5][%cal Rh5f7][%mdl 2048] [#] White is not holding back} O-O {[%emt 0:04:50]} 16. Ng4 $1 {[%emt 0:00:51] Excellent horsemanship.} a6 {[%emt 0:01:44]} (16... Bxb2 17. Rb1 Bd4 18. Nxd4 (18. Nxh6+ Kg7 $14) 18... Nxd4 19. Bd3 $18 (19. Nxh6+ Kg7 $14)) 17. Nxh6+ {[%emt 0:01:18]} Bxh6 {[%emt 0:00:01]} 18. Qxh6 {[%emt 0:00:07][%cal Og2g3] g3! would now be deadly.} Nb4 $2 {[%emt 0:01:33][%mdl 8192] White leaves nothing to chance now.} (18... axb5 $11 19. Bd3 f5 20. Qg6+ Kh8 21. Qh6+ Kg8 22. Qg6+ Kh8 23. Qh6+ Kg8) 19. Nd4 $18 {[%emt 0:01:36]} Qe7 {[%emt 0:01:56]} 20. a3 {[%emt 0:01:47]} Nc6 {[%emt 0:00:01]} 21. Bd3 {[%emt 0:00:42][%csl Gd3][%cal Rh6h7] [#]} f6 $2 {[%emt 0:00:01]} (21... f5) 22. Qg6+ {[%emt 0:00:26]} Kh8 {[%emt 0:00:04]} 23. Qh5+ {[%emt 0:00:10]} Kg8 {[%emt 0:00:22]} 24. Qg4+ {[%emt 0:00:05]} Kh8 {[%emt 0:00:26]} 25. Qxh4+ {[%emt 0:00:06]} Kg8 {[%emt 0:00:09]} 26. Qg4+ {[%emt 0:01:20]} Kh8 {[%emt 0:00:05]} 27. Nxe6 {[%emt 0:01:59]} Bc8 {[%emt 0:01:37]} 28. Qh5+ {[%emt 0:00:18]} Kg8 {[%emt 0:00:01]} 29. Qg6+ {[%emt 0:00:06]} ({Not} 29. Qxd5 Bxe6 30. Qe4 Bd5 31. Qxe7 Nxe7 $14) 29... Kh8 {[%emt 0:00:03]} 30. Qh6+ {[%emt 0:00:05]} Kg8 {[%emt 0:00:03]} 31. Qxf8+ {[%emt 0:00:08]} Qxf8 {[%emt 0:00:20]} 32. Nxf8 {[%emt 0:00:04]} Kxf8 {[%emt 0:00:15][%cal Bg8f8,Bf8g7,Bg7h6][%mdl 32]} 33. O-O-O {[%emt 0:00:25]} b5 {[%emt 0:00:12]} 34. h4 {[%emt 0:00:35][%cal Bh2h4,Bh4h5][%mdl 32]} Kg7 {[%emt 0:00:10]} 35. h5 {[%emt 0:00:33]} Kh6 {[%emt 0:00:05]} 36. Be2 {[%emt 0:00:11]} Be6 {[%emt 0:00:09]} 37. Bf3 {[%emt 0:00:20]} Rd8 {[%emt 0:00:03]} 38. g4 {[%emt 0:00:13]} b4 {[%emt 0:00:12]} 39. axb4 {[%emt 0:02:11]} Nxb4 {[%emt 0:00:05]} 40. c3 {[%emt 0:00:07]} Nc6 {[%emt 0:00:14]} 41. Rdg1 {[%emt 0:00:28]} Rf8 {[%emt 0:00:41]} 42. g5+ {[%emt 0:00:47]} fxg5 {[%emt 0:00:07]} 43. fxg5+ {[%emt 0:00:03][%cal Bf4g5,Bg5g6,Bg6g7][%mdl 32]} Kh7 {[%emt 0:00:20]} 44. g6+ {[%emt 0:00:23]} Kh6 {[%emt 0:00:01]} 45. g7 {[%emt 0:00:15]} Rxf3 {[%emt 0:00:06]} 46. Rg6+ {[%emt 0:00:04] White mates.} Kh7 {[%emt 0:00:04]} 47. Rxe6 {[%emt 0:00:06] KRR-KRN} Na5 {[%emt 0:00:07]} 48. Rg6 {[%emt 0:00:16][%cal Rg7g8]} Kg8 {[%emt 0:00:11]} 49. h6 {[%emt 0:00:07]} Nb3+ {[%emt 0:00:03]} 50. Kc2 {[%emt 0:00:12]} Nd4+ {[%emt 0:00:04]} 51. cxd4 {[%emt 0:00:04]} Rxf2+ {[%emt 0:00:02]} 52. Kb1 {[%emt 0:00:08]} Rf1+ {[%emt 0:00:04]} 53. Rxf1 {[%emt 0:00:05] Weighted Error Value: White=0.19 (very precise) /Black=0.44.  Loses game:     	---       	Black=1      Mistake:       	White=2     	Black=2      Inaccurate:     	White=1     	Black=2      OK:         	White=6     	Black=6      Best:        	White=3     	Black=4      Strong:       	White=1     	---} 1-0